[Event "European Women-ch 2023"]
[Site "Petrovac"]
[Date "2023.03.18"]
[Round "1.9"]
[White "Mkrtchian, Lilit"]
[Black "Paasikangas, Johanna"]
[Result "1-0"]
[ECO "A35"]
[WhiteElo "2379"]
[BlackElo "2115"]
[Annotator "TA"]
[PlyCount "93"]
[EventDate "2023.03.15"]
[EventType "swiss"]
[EventCountry "MNE"]
[SourceTitle "playchess.com"]
[Source "ChessBase"]
[SourceQuality "1"]
[TimeControl "40/5400+30:1800+30"]

{[%evp 15,93,38,41,47,54,55,71,68,83,72,70,70,93,86,85,97,86,88,136,146,142,142,142,130,140,136,152,165,166,148,162,155,166,160,152,161,157,158,174,90,137,147,221,217,195,156,240,233,318,311,344,258,421,230,380,301,602,591,602,573,578,568,504,520,485,482,596,584,538,548,620,601,584,556,872,863,864,860,755,706]} 1. c4 {[%emt 0:00:15]} c5 {[%emt 0:00:15]} 2. Nf3 {[%emt 0:00:40]} Nc6 {[%emt 0:00:46]} 3. Nc3 {[%emt 0:01:09]} g6 {[%emt 0:01:23]} 4. e3 {[%emt 0:00:29][%cal Be2e3,Be3d4,Bd4d5][%mdl 32]} Bg7 {[%emt 0:00:54]} 5. d4 {[%emt 0:00:17]} cxd4 {[%emt 0:02:15]} 6. exd4 {[%emt 0:00:09]} d6 {[%emt 0:00:21]} 7. d5 {[%emt 0:11:56]} Ne5 {[%emt 0:04:23]} 8. Nxe5 {[%emt 0:04:06]} Bxe5 {[%emt 0:03:41]} 9. Bd3 {[%emt 0:01:03] A35: Symmetrical English: 2 Nc3 Nc6 3 Nf3.} Bg7 {[%emt 0:01:56]} 10. O-O {[%emt 0:00:58]} Nh6 {[%emt 0:04:33]} 11. Re1 {[%emt 0:10:09] White is better.} O-O {[%emt 0:05:43]} 12. Bg5 {[%emt 0:03:45]} Re8 {[%emt 0:02:41]} 13. Qd2 {[%emt 0:17:41] White has more active pieces.} Ng4 {[%emt 0:11:02] [#]} 14. h3 $146 {[%emt 0:07:42]} ({Predecessor:} 14. Rac1 Ne5 15. Bf1 Bf5 16. h3 h5 17. Ne4 Bxe4 18. Rxe4 Rc8 19. b3 Qd7 20. f4 {1-0 Kim,Y (2315)-Jaskolka,T (2213) Titled Tuesday intern op 08th Mar Early blitz 2022 (3)}) 14... Ne5 {[%emt 0:05:16]} 15. Bf1 {[%emt 0:00:25]} a6 {[%emt 0:06:47]} 16. Rac1 {[%emt 0:06:25]} f6 {[%emt 0:04:59]} ({Black should play} 16... Nd7) 17. Be3 $16 {[%emt 0:02:20]} Bd7 {[%emt 0:00:56]} 18. f4 {[%emt 0:03:05]} Nf7 {[%emt 0:00:10]} 19. Qf2 {[%emt 0:02:38]} f5 {[%emt 0:18:09]} 20. Bb6 {[%emt 0:02:42]} Qb8 {[%emt 0:04:21]} 21. a4 {[%emt 0:07:13]} Bf6 {[%emt 0:08:40]} 22. b3 {[%emt 0:02:06]} Kg7 {[%emt 0:03:07]} 23. Re3 {[%emt 0:03:38]} Rg8 {[%emt 0:01:01]} 24. Rce1 {[%emt 0:01:16] aiming for Rxe7.} Qf8 {[%emt 0:00:52]} 25. Ne2 {[%emt 0:09:40]} Re8 {[%emt 0:01:22]} 26. Nd4 {[%emt 0:00:07]} Kh8 {[%emt 0:02:28]} 27. Nf3 {[%emt 0:00:59]} (27. Bd3 $18) 27... Qg7 {[%emt 0:00:56]} (27... g5 $142) 28. Qd2 {[%emt 0:00:24]} h6 {[%emt 0:02:38]} (28... g5 $16) 29. Bd4 $18 {[%emt 0:00:52]} Nd8 {[%emt 0:01:11]} 30. Qc3 {[%emt 0:00:38][%cal Oe3e7] Threatens to win with Rxe7!} Rgf8 {[%emt 0:00:37]} (30... Bxd4 $16 {might work better.} 31. Qxd4 (31. Nxd4 e5 $14) 31... Qxd4 32. Nxd4 b6 33. Rxe7 Rxe7 34. Rxe7 Rg7) 31. Bxf6 {[%emt 0:00:26]} Rxf6 {[%emt 0:00:09]} 32. h4 {[%emt 0:00:33]} Kg8 {[%emt 0:00:29]} 33. a5 {[%emt 0:00:27]} Kf8 $2 {[%emt 0:01:20]} (33... Rf7 34. Qb4 Rf6) 34. Qb2 {[%emt 0:00:38]} (34. c5 $142) 34... Qf7 {[%emt 0:00:42]} (34... Nf7 $142 35. Bd3 e6) 35. b4 {[%emt 0:00:31]} Bc8 $2 {[%emt 0:01:15] [#]} (35... Qg7 36. Qd4 Kg8) 36. Ng5 $1 {[%emt 0:00:23][%mdl 512] White is clearly winning.} Qg7 {[%emt 0:00:22] [#]} 37. Qxf6+ {[%emt 0:00:45][%mdl 576] Decoy} Qxf6 {[%emt 0:00:20]} 38. Nh7+ {[%emt 0:00:00]} Kf7 {[%emt 0:00:06]} 39. Nxf6 {[%emt 0:00:16]} Kxf6 {[%emt 0:00:06]} 40. c5 {[%emt 0:00:00][%cal Bc4c5,Bc5d6][%mdl 32]} e5 {[%emt 0:00:00]} 41. cxd6 {[%emt 0:08:25]} e4 {[%emt 0:02:10]} 42. b5 {[%emt 0:02:24]} Nf7 {[%emt 0:00:25]} 43. bxa6 {[%emt 0:00:22]} bxa6 {[%emt 0:00:05]} 44. Rb1 {[%emt 0:01:21]} Nxd6 {[%emt 0:00:18]} 45. Rb6 {[%emt 0:00:31]} Ke7 {[%emt 0:00:08]} 46. Rc3 {[%emt 0:00:20]} Bd7 {[%emt 0:01:02]} 47. Rxa6 {[%emt 0:01:20] Weighted Error Value: White=0.16 (very precise) /Black=0.40} 1-0

[Event "European Women-ch 2023"]
[Site "Petrovac"]
[Date "2023.03.18"]
[Round "1.9"]
[White "Schulze, Lara"]
[Black "Shuqja, Klean"]
[Result "1-0"]
[ECO "B13"]
[WhiteElo "2277"]
[BlackElo "1884"]
[Annotator "TA"]
[PlyCount "81"]
[EventDate "2023.03.15"]
[EventType "swiss"]
[EventCountry "MNE"]
[SourceTitle "playchess.com"]
[Source "ChessBase"]
[SourceQuality "1"]
[TimeControl "40/5400+30:1800+30"]

{[%evp 9,81,8,14,18,38,15,43,39,49,46,54,42,43,42,49,45,45,30,64,37,18,24,30,31,35,18,36,0,0,0,0,-38,-35,-44,-10,-23,-14,-55,-37,-78,0,-8,0,0,0,-21,70,56,61,63,308,307,575,557,543,545,965,914,873,799,755,722,5193,4284,4818,2241,5002,4686,2249,2186,29978,1366,29979,29980]} 1. e4 {[%emt 0:00:04]} c6 {[%emt 0:07:58]} 2. d4 {[%emt 0:00:22]} d5 {[%emt 0:00:06]} 3. exd5 {[%emt 0:00:06]} cxd5 {[%emt 0:00:14]} 4. Nf3 {[%emt 0:00:06]} Nc6 {[%emt 0:01:42]} 5. c3 {[%emt 0:00:10]} Qc7 {[%emt 0:01:20]} 6. g3 {[%emt 0:00:32] B13: Caro-Kann: Exchange Variation and Panov-Botvinnik Attack.} Bg4 {[%emt 0:03:55]} 7. Bf4 {[%emt 0:00:17] [#]} Bxf3 $146 {[%emt 0:07:11]} (7... Qb6 {is interesting.} 8. Nbd2 e5 9. Bxe5 Nxe5 10. Qe2 Be7) ({Predecessor:} 7... Qd7 8. Nbd2 e6 9. Qb3 f6 10. h3 Bh5 11. h4 Nh6 12. Bh3 Bd6 13. Bxh6 gxh6 {½-½ Cornette,M (2584)-Admiraal,M (2491) BEL-chT 1819 2018 (3.1)}) 8. Qxf3 {[%emt 0:03:55] White is slightly better.} Qd7 {[%emt 0:01:37]} 9. Bd3 {[%emt 0:07:38]} e6 {[%emt 0:02:55]} 10. O-O {[%emt 0:01:14]} Nf6 {[%emt 0:06:20]} 11. Nd2 {[%emt 0:04:32]} Bd6 {[%emt 0:02:42]} 12. Rae1 {[%emt 0:06:43]} O-O {[%emt 0:06:56]} 13. Be5 {[%emt 0:03:47] A strong pair of Bishops.} Qe7 {[%emt 0:04:04]} 14. Qe2 {[%emt 0:04:06] White is more active.} (14. g4 {feels hotter.} Bxe5 15. dxe5 Nd7 16. Qh3) 14... Bxe5 {[%emt 0:05:33]} 15. dxe5 {[%emt 0:00:03]} Nd7 {[%emt 0:00:09]} 16. f4 {[%emt 0:00:54]} (16. Qh5 g6 17. Qe2 Ncxe5 $17) 16... g6 {[%emt 0:05:14]} 17. Kg2 {[%emt 0:04:52]} h5 {[%emt 0:07:21]} 18. g4 {[%emt 0:12:16]} hxg4 {[%emt 0:04:40]} 19. Qxg4 {[%emt 0:00:05] Hoping for Nf3.} Kg7 $1 {[%emt 0:00:12]} 20. Nf3 {[%emt 0:04:18]} Rh8 {[%emt 0:04:16]} 21. Ng5 {[%emt 0:03:57]} Rh6 {[%emt 0:11:22]} 22. h4 {[%emt 0:03:09]} Rah8 {[%emt 0:01:30]} 23. Rh1 {[%emt 0:00:25]} Nc5 {[%emt 0:06:49]} (23... d4 $5 {[%cal Rd4c3]}) 24. Be2 {[%emt 0:04:21]} Ne4 {[%emt 0:03:37]} (24... Qd8 $17 {Threatens to win with ...Ne7.} 25. b4 Na4) 25. Bf3 {[%emt 0:02:54]} Nxg5 {[%emt 0:02:12]} (25... Nd2 {looks sharper.} 26. Be2 Qe8 27. Rd1 Nc4) 26. fxg5 {[%emt 0:00:52]} R6h7 {[%emt 0:00:32]} 27. Qf4 {[%emt 0:01:09]} (27. c4 $5 {[%cal Rc4d5]}) 27... b5 {[%emt 0:02:53]} ({Black should try} 27... Kf8 $11) 28. Be2 $14 {[%emt 0:03:47]} a6 {[%emt 0:00:38]} 29. h5 $1 {[%emt 0:00:50]} Rf8 $2 {[%emt 0:00:29] [#] Black cannot hold the game after this.} (29... gxh5 $14 30. Bd3 Kg8) 30. Qf6+ {[%emt 0:07:34]} Qxf6 $2 {[%emt 0:00:29]} (30... Kg8 31. hxg6 {[%mdl 64] Discovered Attack} fxg6 32. Rxh7 {[%mdl 64] Deflection} (32. Qxg6+ $2 {perishes.} Rg7 $19) 32... Qxh7 33. Qxe6+ Qf7) 31. exf6+ $18 {[%emt 0:01:30]} ({Less strong is} 31. gxf6+ Kg8 $16) 31... Kg8 {[%emt 0:00:28]} 32. hxg6 {[%emt 0:01:06]} fxg6 {[%emt 0:00:35]} 33. Bg4 {[%emt 0:04:54]} Nd8 {[%emt 0:00:29]} 34. Bxe6+ {[%emt 0:00:46]} Nxe6 {[%emt 0:00:04]} 35. Rxh7 {[%emt 0:00:30][%mdl 4096] Endgame KRR-KRN} ({Not} 35. Rxe6 Rxh1 36. Kxh1 Rd8 37. Rxa6 d4 38. cxd4 Rxd4 $18) 35... Nf4+ {[%emt 0:00:55]} 36. Kf3 {[%emt 0:00:12] [#] White threatens Rg7+ and mate.} Kxh7 {[%emt 0:00:15]} 37. Kxf4 {[%emt 0:00:16]} (37. Re7+ $142 Kh8 38. Kxf4) 37... Rd8 {[%emt 0:00:31]} 38. Re7+ {[%emt 0:00:41]} Kg8 {[%emt 0:00:20]} 39. Ke5 {[%emt 0:00:22] Rg7+ is the strong threat.} b4 {[%emt 0:00:49]} 40. cxb4 {[%emt 0:00:00]} (40. f7+ $142 Kf8 41. Re8+ {[%mdl 64] Promotion} Rxe8+ 42. fxe8=Q+ Kxe8 43. cxb4 Kd8 44. Kxd5 Kc7 45. Ke5) 40... d4 {[%emt 0:00:00]} 41. f7+ {[%emt 0:01:11] Weighted Error Value: White=0.11 (very precise) /Black=0.70} 1-0

[Event "European Women-ch 2023"]
[Site "Petrovac"]
[Date "2023.03.18"]
[Round "1.10"]
[White "Mayrhuber, Nikola"]
[Black "Socko, Monika"]
[Result "0-1"]
[ECO "E52"]
[WhiteElo "2162"]
[BlackElo "2432"]
[Annotator "TA"]
[PlyCount "80"]
[EventDate "2023.03.15"]
[EventType "swiss"]
[EventCountry "MNE"]
[SourceTitle "playchess.com"]
[Source "ChessBase"]
[SourceQuality "1"]
[TimeControl "40/5400+30:1800+30"]

{[%evp 18,80,0,6,30,29,27,31,54,45,53,38,48,25,-1,-25,-28,-23,-18,0,-14,-8,-8,-11,0,0,0,0,0,-29,13,-3,-10,-19,-17,-17,-21,-110,-105,-122,-95,-118,-29,-79,0,-230,-232,-219,-195,-629,-616,-666,-510,-877,-876,-1506,-810,-1720,-1562,-29959,-29954,-5210,-764,-29989,-29990]} 1. d4 {[%emt 0:00:03]} Nf6 {[%emt 0:00:06]} 2. c4 {[%emt 0:00:10]} e6 {[%emt 0:00:07]} 3. Nc3 {[%emt 0:00:04]} Bb4 {[%emt 0:00:17]} 4. e3 {[%emt 0:00:09]} O-O {[%emt 0:00:36]} 5. Nf3 {[%emt 0:00:05]} d5 {[%emt 0:00:40]} 6. Bd2 {[%emt 0:00:06]} b6 {[%emt 0:06:47]} 7. cxd5 {[%emt 0:00:10]} exd5 {[%emt 0:00:05]} 8. Rc1 {[%emt 0:00:06]} Bb7 {[%emt 0:03:27]} 9. Bd3 {[%emt 0:00:13]} Nbd7 {[%emt 0:03:11]} 10. O-O {[%emt 0:01:15]} Qe7 {[%emt 0:04:35] E52: Nimzo-Indian: Rubinstein: 4...0-0 5 Nf3 d5 6 Bd3 b6.} 11. a3 {[%emt 0:13:15]} Bxc3 {[%emt 0:01:00]} 12. Bxc3 {[%emt 0:00:17] [#]} Rfd8 $146 {[%emt 0:02:02] White is slightly better.} ({Predecessor:} 12... Ne4 13. Qe2 a5 14. Rfd1 Rfd8 15. Be1 c5 16. dxc5 bxc5 17. Qc2 f5 18. Bb5 Ndf6 19. b4 axb4 20. axb4 c4 {½-½ Durak,C (2244)-Ilincic,Z (2409) Arandjelovac IM 3rd 2021 (4)}) 13. b4 {[%emt 0:07:53]} Ne4 {[%emt 0:02:06]} 14. Bb2 {[%emt 0:01:49]} c6 {[%emt 0:06:53]} 15. Bb1 {[%emt 0:11:40]} a5 {[%emt 0:04:04]} 16. Qb3 {[%emt 0:03:44]} Ba6 {[%emt 0:07:30]} 17. Rfe1 {[%emt 0:14:17]} Bc4 {[%emt 0:09:45]} 18. Rxc4 {[%emt 0:01:10]} dxc4 {[%emt 0:00:04]} 19. Qxc4 {[%emt 0:00:16]} axb4 {[%emt 0:03:45]} 20. axb4 {[%emt 0:01:06]} Ndf6 {[%emt 0:22:40]} 21. Ne5 {[%emt 0:11:16]} b5 $36 {[%emt 0:00:00][%mdl 2048] Black fights for an advantage.} 22. Qe2 {[%emt 0:07:01]} Rdc8 {[%emt 0:00:00]} 23. f3 {[%emt 0:03:45]} (23. Rc1 $5) 23... Ng5 {[%emt 0:00:00]} 24. Nd3 {[%emt 0:06:38][%mdl 1024] White has compensation.} Nd5 {[%emt 0:00:00]} 25. Qd2 $1 {[%emt 0:01:30]} Nb6 {[%emt 0:00:46]} 26. Ne5 {[%emt 0:04:31]} f6 {[%emt 0:00:33][%cal Bf7f6,Bf6e5][%mdl 32]} 27. h4 {[%emt 0:04:09]} (27. Nd3 $11 {remains equal.}) 27... fxe5 $17 {[%emt 0:03:14]} 28. hxg5 {[%emt 0:00:09]} Nc4 {[%emt 0:01:17]} 29. Qc2 {[%emt 0:00:44]} Nxb2 {[%emt 0:06:47]} (29... e4 $17 {And now ...Nxb2 would win.} 30. fxe4 Qxg5) 30. Qxh7+ {[%emt 0:06:54] [#]} (30. dxe5 $11 {keeps the balance.} Qxe5 31. f4) 30... Kf8 {[%emt 0:02:05]} ({Better is} 30... Kf7 $1 $17 31. f4 e4 32. Bxe4 Ke8) 31. Qh8+ $2 {[%emt 0:00:04]} (31. Bf5 $1 $11 {and White has nothing to worry.} Re8 32. Qh8+ Kf7 33. Qh5+ Kg8 34. Qh7+ Kf8 35. Qh8+ Kf7 36. Qh5+ Kg8 37. Qh7+ Kf8) 31... Kf7 $19 {[%emt 0:00:01][%cal Bf8f7,Bf7e6,Be6d6,Bd6c7][%mdl 32]} 32. Qh5+ {[%emt 0:00:14] [#]} Ke6 $1 {[%emt 0:00:29] aiming for ...Kd6.} (32... Kf8 33. Bf5 Re8 34. Qh8+ Kf7 35. Qh5+ Kg8 36. Qh7+ Kf8 37. Qh8+ Kf7 38. Qh5+ Kg8 39. Qh7+ Kf8 40. Qh8+ $11) 33. g6 $2 {[%emt 0:01:35]} (33. Qg6+ Kd7 34. Bf5+ Kc7 35. Bxc8 Rxc8 36. Ra1) 33... Kd6 {[%emt 0:00:53]} ({Stronger than} 33... Qxb4 34. Qxe5+ Kd7 35. Bf5+ (35. Qxg7+ Kd8 $11) 35... Kd8 36. Rb1 $11) 34. f4 {[%emt 0:00:28]} Kc7 {[%emt 0:00:44]} 35. fxe5 {[%emt 0:00:29]} (35. Qxe5+ $142 Qxe5 36. dxe5) 35... Rh8 {[%emt 0:01:03]} 36. Qf3 {[%emt 0:00:32]} Raf8 {[%emt 0:04:15]} 37. Bf5 {[%emt 0:00:05]} Qh4 {[%emt 0:02:26]} 38. Kf1 {[%emt 0:00:51]} Qg5 {[%emt 0:01:11]} 39. g4 {[%emt 0:00:35]} Rh2 {[%emt 0:01:16]} (39... Nc4 $142 40. Re2 Ra8) 40. Qg3 {[%emt 0:00:00]} Rxf5+ {[%emt 0:00:00][%mdl 64] Pin. Excellently played by Socko!   Weighted Error Value: White=1.13/Black=0.42} 0-1